bitfinex-derivatives/quotes_BTCF0:USTF0_20251230
["timestamp","ask_amount","ask_price","bid_price","bid_amount"]
[1767095686777,0.0113999,87832.0,87818.0,0.00227745]
[1767095687182,0.0113996,87835.0,87818.0,0.00227745]
[1767095687480,0.0113998,87833.0,87818.0,0.00227745]
[1767095688472,0.0114001,87831.0,87818.0,0.00227745]
[1767095689580,0.0114003,87829.0,87818.0,0.00227745]
[1767095689776,0.0114,87832.0,87818.0,0.00227745]
[1767095691286,0.0114,87832.0,87820.0,0.15431033]
[1767095691481,0.00017076,87845.0,87820.0,0.15431033]
[1767095691784,0.011399,87839.0,87830.0,0.15431033]
[1767095691985,0.0113993,87837.0,87820.0,0.16571173]
[1767095692176,0.02714734,87836.0,87822.0,0.0114012]
[1767095692375,0.02714734,87835.0,87822.0,0.0114012]
[1767095692582,0.15431033,87840.0,87820.0,0.16571173]
[1767095692782,0.02714751,87839.0,87820.0,0.16571173]
[1767095692985,0.02714751,87838.0,87820.0,0.16571173]
[1767095693185,0.02714751,87837.0,87820.0,0.16571173]
[1767095693385,0.02714751,87836.0,87820.0,0.16571173]
[1767095693689,0.03854711,87835.0,87820.0,0.16571173]
[1767095693888,0.02714751,87834.0,87820.0,0.16571173]
[1767095694889,0.0113994,87836.0,87820.0,0.0114014]
[1767095695191,0.02715076,87835.0,87820.0,0.16571173]
[1767095695488,0.02715076,87834.0,87822.0,0.0114012]
[1767095695691,0.0113993,87837.0,87820.0,0.15431033]
[1767095695889,0.02715288,87836.0,87820.0,0.15431033]
[1767095696090,0.02715288,87835.0,87820.0,0.15431033]
[1767095696292,0.02715288,87834.0,87820.0,0.15431033]
[1767095696589,0.15431033,87840.0,87820.0,0.15431033]
[1767095696791,0.0271554,87839.0,87820.0,0.15431033]
[1767095696984,0.0271554,87838.0,87820.0,0.15431033]
[1767095697191,0.0271554,87837.0,87820.0,0.15431033]
[1767095697383,0.0271554,87836.0,87820.0,0.15431033]
[1767095697585,0.15431033,87840.0,87820.0,0.15431033]
[1767095697586,0.0271554,87835.0,87820.0,0.15431033]
[1767095697786,0.0271554,87834.0,87820.0,0.15431033]
[1767095698088,0.0113997,87834.0,87819.0,0.0114015]
[1767095698390,0.0113999,87832.0,87818.0,0.00227745]
[1767095698589,0.15431033,87830.0,87818.0,0.00227745]
[1767095698885,0.0113999,87832.0,87818.0,0.00227745]
[1767095699292,0.15431033,87830.0,87818.0,0.00227745]
[1767095699693,0.0113999,87832.0,87818.0,0.00227745]
[1767095700192,0.0113996,87835.0,87818.0,0.01367915]
[1767095700493,0.0113998,87833.0,87818.0,0.01367915]
[1767095700788,0.02717129,87832.0,87818.0,0.01367915]
[1767095700979,0.05708,87841.0,87818.0,0.01367915]
[1767095700980,0.15431033,87830.0,87818.0,0.00227745]
[1767095701181,0.011401,87824.0,87818.0,0.00227745]
[1767095701387,0.02717326,87823.0,87813.0,0.09688]
[1767095701588,0.02717338,87822.0,87813.0,0.09688]
[1767095701892,0.01157136,87827.0,87813.0,0.09688]
[1767095702089,0.02717336,87826.0,87813.0,0.1082823]
[1767095702292,0.02717336,87825.0,87813.0,0.1082823]
[1767095702593,0.02717336,87824.0,87813.0,0.1082823]
[1767095702891,0.02717336,87823.0,87813.0,0.1082823]
[1767095703094,0.02717336,87822.0,87813.0,0.1082823]
[1767095703294,0.00017076,87827.0,87813.0,0.1082823]
[1767095703488,0.02716727,87826.0,87815.0,0.0114021]
[1767095703691,0.0113982,87845.0,87816.0,0.15431033]
[1767095704001,0.0113983,87845.0,87820.0,0.15431033]
[1767095704289,0.0113983,87845.0,87828.0,0.0114004]
[1767095704590,0.00017076,87845.0,87832.0,0.0113998]
[1767095704794,0.00017076,87845.0,87830.0,0.15431033]
[1767095705397,0.00017076,87845.0,87831.0,0.05708]
[1767095705595,0.00017076,87845.0,87831.0,0.06848]
[1767095707296,0.00017076,87845.0,87831.0,0.05708]
[1767095707491,0.00017076,87845.0,87832.0,0.0113998]
[1767095707691,0.00017076,87845.0,87834.0,0.0113996]
[1767095708895,0.0113985,87843.0,87831.0,0.05708]
[1767095709096,0.0113989,87840.0,87828.0,0.00017076]
[1767095709299,0.0113996,87835.0,87818.0,0.09688]
[1767095709603,0.15431033,87830.0,87818.0,0.05708]
[1767095711296,0.0114003,87829.0,87818.0,0.05708]
[1767095712297,0.0114006,87827.0,87818.0,0.05708]
[1767095712692,0.15431033,87830.0,87818.0,0.05708]
[1767095712893,0.0114004,87829.0,87818.0,0.05708]
[1767095714304,0.0114004,87829.0,87811.0,0.0114025]
[1767095714606,0.011402,87816.0,87800.0,0.05708]
[1767095714903,0.00017076,87817.0,87802.0,0.0114037]
[1767095715601,0.00011453,87816.0,87802.0,0.0114037]
[1767095715809,0.00011453,87816.0,87804.0,0.0114035]
[1767095716704,0.00011453,87816.0,87801.0,0.0114039]
[1767095717301,0.00011453,87816.0,87800.0,0.05708]
[1767095717803,0.00011453,87816.0,87800.0,0.22279433]
[1767095718507,0.00011453,87816.0,87800.0,0.068484]
[1767095718715,0.00011453,87816.0,87800.0,0.22279433]
[1767095719406,0.00011453,87816.0,87800.0,0.068484]
[1767095719717,0.00011453,87816.0,87800.0,0.22279433]
[1767095720021,0.00011453,87816.0,87800.0,0.068484]
[1767095723426,0.15431033,87810.0,87800.0,0.068484]
[1767095723614,0.15431033,87810.0,87800.0,0.05708]
[1767095723816,0.0114029,87809.0,87800.0,0.05708]
[1767095724122,0.00011453,87816.0,87800.0,0.05708]
[1767095724432,0.0114024,87813.0,87800.0,0.05708]
[1767095724725,0.15431033,87810.0,87800.0,0.05708]
[1767095724927,0.06859663,87816.0,87800.0,0.05708]
[1767095725123,0.15431033,87810.0,87800.0,0.05708]
[1767095725723,0.15431033,87810.0,87788.0,0.09915823]
[1767095725929,0.15431033,87810.0,87789.0,0.05708]
[1767095726116,0.02666683,87809.0,87794.0,0.0114048]
[1767095726314,0.15431033,87810.0,87794.0,0.0114048]
[1767095726724,0.00011453,87816.0,87790.0,0.15431033]
[1767095727028,0.18062208,87815.0,87791.0,0.0114051]
[1767095727222,0.00011453,87816.0,87800.0,0.15431033]
[1767095727621,0.00017076,87817.0,87800.0,0.15431033]
[1767095727822,0.15431033,87820.0,87807.0,0.0114031]
[1767095728129,0.15431033,87820.0,87800.0,0.15431033]
[1767095728328,0.05708,87821.0,87804.0,0.0114034]
[1767095728630,0.18097207,87820.0,87806.0,0.0114032]
[1767095728827,0.15431033,87820.0,87804.0,0.00017076]
[1767095729023,0.15431033,87820.0,87806.0,0.0114032]
[1767095729422,0.05708,87821.0,87805.0,0.0114034]
[1767095729631,0.1809712,87820.0,87805.0,0.0114034]
[1767095729833,0.05712,87819.0,87805.0,0.0114034]
[1767095732822,0.05712,87818.0,87805.0,0.0114034]
[1767095734231,0.05712,87818.0,87804.0,0.00017076]
[1767095734937,0.0685218,87818.0,87804.0,0.00017076]
[1767095735831,0.0684818,87818.0,87804.0,0.00017076]
[1767095737223,0.02667704,87817.0,87804.0,0.00017076]
[1767095737435,0.0684818,87818.0,87804.0,0.00017076]
[1767095737637,0.02667701,87817.0,87804.0,0.00017076]
[1767095737937,0.0684818,87818.0,87804.0,0.00017076]
[1767095738133,0.02667701,87817.0,87804.0,0.01157426]
[1767095738438,0.05708,87818.0,87805.0,0.0114034]
[1767095738838,0.00017076,87822.0,87808.0,0.15431033]
[1767095739027,0.05708,87826.0,87813.0,0.0114023]
[1767095739227,0.05708,87826.0,87810.0,0.0114027]
[1767095739640,0.05708,87826.0,87812.0,0.0114024]
[1767095739939,0.05708,87826.0,87814.0,0.0114022]
[1767095740136,0.05708,87828.0,87814.0,0.0114022]
[1767095740641,0.15431033,87840.0,87808.0,0.30831033]
[1767095740642,0.08377866,87848.0,87818.0,0.15431033]
[1767095740842,0.08377866,87848.0,87830.0,0.15431033]
[1767095740843,0.0113984,87844.0,87830.0,0.15431033]
[1767095741137,0.09692,87846.0,87829.0,0.0114002]
[1767095741446,0.0113982,87845.0,87829.0,0.0114002]
[1767095741746,0.00227667,87848.0,87830.0,0.15431033]
[1767095742035,0.05708,87847.0,87830.0,0.15448109]
[1767095742435,0.00244743,87848.0,87830.0,0.15448109]
[1767095743741,0.00244743,87848.0,87836.0,0.0113993]
[1767095745631,0.00244743,87848.0,87837.0,0.05708]
[1767095749442,0.00244743,87848.0,87815.0,0.011402]
[1767095749443,0.15396,87847.0,87815.0,0.011402]
[1767095749644,0.0113991,87839.0,87819.0,0.0114015]
[1767095749842,0.0113997,87834.0,87812.0,0.18232261]
[1767095750049,0.0114001,87831.0,87812.0,0.05708]
[1767095750446,0.0114003,87829.0,87813.0,0.00017076]
[1767095750950,0.0114007,87827.0,87813.0,0.00017076]
[1767095751848,0.00017076,87830.0,87813.0,0.00017076]
[1767095752148,0.02667228,87829.0,87813.0,0.00017076]
[1767095752348,0.02667228,87828.0,87814.0,0.154]
[1767095752550,0.00017076,87830.0,87814.0,0.154]
[1767095752742,0.0266733,87829.0,87814.0,0.154]
[1767095753050,0.0266733,87828.0,87814.0,0.154]
[1767095753350,0.00017076,87830.0,87814.0,0.154]
[1767095753650,0.02667385,87829.0,87814.0,0.154]
[1767095753851,0.02667385,87828.0,87814.0,0.154]
[1767095754149,0.00017076,87830.0,87814.0,0.154]
[1767095754350,0.0114004,87828.0,87814.0,0.154]
[1767095756250,0.0266827,87827.0,87814.0,0.154]
[1767095756455,0.0114004,87828.0,87814.0,0.154]
[1767095756748,0.0266827,87827.0,87814.0,0.154]
[1767095756945,0.0114004,87828.0,87814.0,0.154]
[1767095757145,0.0266827,87827.0,87814.0,0.154]
[1767095757348,0.0114004,87828.0,87814.0,0.154]
[1767095757546,0.02668557,87827.0,87814.0,0.154]
[1767095757749,0.00017076,87830.0,87814.0,0.154]
[1767095757750,7.6e-07,87830.0,87814.0,0.154]
[1767095757940,0.15396,87836.0,87814.0,0.154]
[1767095758141,0.05708,87835.0,87814.0,0.154]
[1767095758450,0.05708,87835.0,87814.0,0.1654021]
[1767095758653,0.05708,87835.0,87816.0,0.0114019]
[1767095758943,0.05708,87835.0,87819.0,0.0114015]
[1767095758944,0.00017076,87834.0,87819.0,0.0114015]
[1767095760052,0.00017076,87834.0,87816.0,0.0114019]
[1767095760646,0.00017076,87834.0,87814.0,0.154]
[1767095761144,0.00017076,87834.0,87815.0,0.11386279]
[1767095762157,7.6e-07,87834.0,87815.0,0.11386279]
[1767095763353,7.6e-07,87834.0,87825.0,0.0114008]
[1767095763556,7.6e-07,87834.0,87823.0,0.05708]
[1767095765346,7.6e-07,87834.0,87824.0,0.0114009]
[1767095765657,7.6e-07,87834.0,87826.0,0.0114006]
[1767095766051,0.05708,87842.0,87826.0,0.0114006]
[1767095767061,0.00017076,87843.0,87823.0,0.05708]
[1767095767360,0.15413076,87843.0,87823.0,0.05708]
[1767095767950,0.00017076,87843.0,87823.0,0.05708]
[1767095768358,0.05708,87846.0,87824.0,0.11385242]
[1767095769057,0.05708,87846.0,87837.0,0.0113992]
[1767095769249,0.05708,87846.0,87835.0,0.0113995]
[1767095769952,3.18e-06,87845.0,87833.0,0.00017076]
[1767095770157,0.05690924,87849.0,87839.0,0.0113989]
[1767095771661,0.0113966,87858.0,87841.0,0.0113986]
[1767095771854,0.0113966,87858.0,87833.0,0.00017076]
[1767095771855,0.0113958,87864.0,87847.0,0.0113979]
[1767095772059,0.0113958,87864.0,87850.0,0.0113975]
[1767095772452,0.0113954,87867.0,87850.0,0.0113975]
[1767095772861,0.01150793,87867.0,87850.0,0.0113975]
[1767095775156,0.00011253,87867.0,87850.0,0.0113975]
[1767095776350,0.00011253,87867.0,87842.0,0.0684786]
[1767095776752,0.00011253,87867.0,87843.0,0.11382002]
[1767095777562,0.0113941,87877.0,87861.0,4e-05]
[1767095777761,0.15396,87876.0,87861.0,4e-05]
[1767095777967,0.15396,87876.0,87859.0,0.0113963]
[1767095778456,0.1653543,87876.0,87856.0,0.0113967]
[1767095778759,0.1653543,87876.0,87859.0,0.0113964]
[1767095778958,0.1653543,87876.0,87857.0,0.00017076]
[1767095779757,0.0113945,87874.0,87857.0,0.00017076]
[1767095779967,0.15396,87876.0,87858.0,0.0113964]
[1767095780161,0.1653543,87876.0,87857.0,0.00017076]
[1767095780570,0.0113945,87874.0,87857.0,0.00017076]
[1767095780765,0.15396,87876.0,87857.0,0.00017076]
[1767095781165,0.0113948,87872.0,87857.0,0.00017076]
[1767095781568,0.0113944,87875.0,87857.0,0.00017076]
[1767095782169,0.0113946,87873.0,87857.0,0.00017076]
[1767095783283,0.011395,87870.0,87857.0,0.00017076]
[1767095784273,0.0113953,87868.0,87857.0,0.00017076]
[1767095784469,0.15396,87876.0,87852.0,0.09688]
[1767095784669,0.0113955,87866.0,87852.0,0.09688]
[1767095787879,0.00017076,87868.0,87852.0,0.09688]
[1767095788879,0.0113954,87867.0,87852.0,0.09688]
[1767095790484,0.00017076,87868.0,87853.0,0.0113971]
[1767095794288,0.00017076,87868.0,87855.0,0.0113969]
[1767095794780,0.00017076,87868.0,87857.0,0.0113966]
[1767095795390,0.00017076,87868.0,87854.0,0.011397]
[1767095795889,0.00017076,87868.0,87856.0,0.0113968]
[1767095799289,0.00017076,87868.0,87853.0,0.0113971]
[1767095800393,0.00017076,87868.0,87856.0,0.0113967]
[1767095801084,0.02634495,87867.0,87856.0,0.0113967]
[1767095801284,0.02634495,87866.0,87856.0,0.0113967]
[1767095801481,0.02634495,87865.0,87856.0,0.0113967]
[1767095801691,0.02634495,87864.0,87856.0,0.0113967]
[1767095801893,0.00017076,87868.0,87856.0,0.0113967]
[1767095802092,0.02631308,87867.0,87856.0,0.0113967]
[1767095802283,0.02631308,87866.0,87856.0,0.0113967]
[1767095802479,0.02631308,87865.0,87856.0,0.0113967]
[1767095802698,0.02631308,87864.0,87856.0,0.0113967]
[1767095802886,0.00017076,87868.0,87856.0,0.0113967]
[1767095803087,0.02631674,87867.0,87856.0,0.0113967]
[1767095803283,0.02631674,87867.0,87852.0,0.09688]
[1767095803284,0.02631674,87866.0,87858.0,0.0113965]
[1767095803495,0.02631674,87865.0,87858.0,0.0113965]
[1767095803683,0.00017076,87868.0,87858.0,0.0113965]
[1767095808498,0.00017076,87868.0,87850.0,0.00017076]
[1767095808701,0.00017076,87868.0,87855.0,0.0113968]
[1767095815310,0.00017076,87868.0,87851.0,0.0113973]
[1767095815610,0.02623602,87867.0,87851.0,0.0113973]
[1767095815811,0.02623602,87866.0,87851.0,0.0113973]
[1767095816001,0.02623602,87865.0,87851.0,0.0113973]
[1767095816202,0.00017076,87868.0,87851.0,0.0113973]
[1767095816403,0.02623605,87867.0,87851.0,0.0113973]
[1767095816602,0.02623605,87866.0,87851.0,0.0113973]
[1767095816803,0.02623605,87865.0,87851.0,0.0113973]
[1767095817012,0.01156606,87868.0,87851.0,0.0113973]
[1767095817211,0.02623604,87867.0,87851.0,0.0113973]
[1767095817414,0.02623604,87866.0,87851.0,0.0113973]
[1767095817711,0.02623604,87865.0,87851.0,0.0113973]
[1767095817912,0.0113955,87866.0,87851.0,0.0113973]
[1767095818112,0.02623609,87865.0,87851.0,0.0113973]
[1767095818315,0.0113955,87866.0,87851.0,0.0113973]
[1767095818502,0.02623612,87865.0,87851.0,0.0113973]
[1767095818704,0.0113958,87864.0,87850.0,0.15434476]
[1767095820010,0.0113958,87864.0,87850.0,0.00017076]
[1767095820212,0.0113967,87857.0,87844.0,0.05704]
[1767095820416,0.0113976,87850.0,87828.0,0.08185696]
[1767095820607,0.1655716,87850.0,87832.0,0.11382132]
[1767095820807,0.0113976,87850.0,87833.0,0.0113998]
[1767095821020,0.0113972,87853.0,87833.0,0.0113998]
[1767095821218,0.02637096,87852.0,87834.0,0.00017076]
[1767095821423,0.01156816,87852.0,87835.0,0.0113994]
[1767095821727,0.01156816,87852.0,87837.0,0.0113992]
[1767095823424,0.00017076,87852.0,87834.0,0.00017076]
[1767095823615,0.154174,87850.0,87834.0,0.00017076]
[1767095823819,0.02616494,87849.0,87834.0,0.00017076]
[1767095824027,0.02616494,87848.0,87834.0,0.00017076]
[1767095824330,0.011398,87847.0,87834.0,0.00017076]
[1767095828437,0.154174,87850.0,87834.0,0.00017076]
[1767095828632,0.09684,87851.0,87836.0,0.0113993]
[1767095829636,0.09684,87851.0,87834.0,0.00017076]
[1767095829637,0.00017076,87852.0,87840.0,0.154174]
[1767095829831,0.00017076,87852.0,87840.0,0.1655728]
[1767095830036,0.05708,87854.0,87840.0,0.1655728]
[1767095830928,0.05708,87855.0,87840.0,0.1655728]
[1767095831437,0.05708,87855.0,87840.0,0.154174]
[1767095831633,0.05708,87855.0,87841.0,0.0113987]
[1767095832536,0.05708,87855.0,87845.0,0.154174]
[1767095833345,0.05708,87855.0,87842.0,0.0113985]
[1767095835439,0.05708,87855.0,87844.0,0.0113983]
[1767095840949,0.02611576,87854.0,87844.0,0.0113983]
[1767095841146,0.02611576,87853.0,87844.0,0.0113983]
[1767095841350,0.02611576,87852.0,87846.0,0.0113981]
[1767095841552,0.00017076,87856.0,87846.0,0.0113981]
[1767095841850,0.0113963,87860.0,87846.0,0.0113981]
[1767095842952,0.011396,87863.0,87846.0,0.0113981]
[1767095844152,0.05708,87864.0,87843.0,0.05708]
[1767095844454,0.05708,87864.0,87850.0,0.154174]
[1767095844641,0.05708,87864.0,87851.0,0.0113974]
[1767095847452,0.05708,87864.0,87850.0,0.211254]
[1767095848357,0.0684758,87864.0,87850.0,0.211254]
[1767095850762,0.0684758,87864.0,87850.0,0.05708]
[1767095851069,0.0684758,87864.0,87850.0,0.211254]
[1767095853763,0.02593411,87863.0,87850.0,0.211254]
[1767095854062,0.02593411,87862.0,87850.0,0.211254]
[1767095854264,0.02593411,87861.0,87850.0,0.211254]
[1767095854463,0.02593411,87860.0,87850.0,0.211254]
[1767095854766,0.01685182,87859.0,87850.0,0.211254]
[1767095854965,0.0684758,87864.0,87850.0,0.211254]
[1767095855156,0.05708,87864.0,87850.0,0.211254]
[1767095855356,0.0113957,87865.0,87850.0,0.211254]
[1767095857368,0.0113957,87865.0,87850.0,0.05708]
[1767095857568,0.0113957,87865.0,87850.0,0.211254]
[1767095858461,0.05708,87866.0,87851.0,0.0113974]
[1767095858661,0.0684755,87866.0,87851.0,0.0113974]
[1767095861160,0.0684755,87866.0,87850.0,0.211254]
[1767095861361,0.0684755,87866.0,87850.0,0.2226515]
[1767095862074,0.0113958,87864.0,87850.0,0.2226515]
[1767095866079,0.05708,87866.0,87850.0,0.2226515]
[1767095866577,0.03709571,87865.0,87850.0,0.2226515]
[1767095866876,0.02570011,87864.0,87850.0,0.2226515]
[1767095867176,0.02570011,87863.0,87850.0,0.2226515]
[1767095867376,0.02570011,87862.0,87850.0,0.2226515]
[1767095867567,0.02570011,87861.0,87850.0,0.2226515]
[1767095867765,0.05708,87866.0,87850.0,0.2226515]
[1767095868479,0.05708,87866.0,87850.0,0.0684775]
[1767095868875,0.0684755,87866.0,87850.0,0.0684775]
[1767095869892,0.05708,87866.0,87852.0,0.0113972]
[1767095870687,0.05708,87866.0,87853.0,0.0113971]
[1767095872991,0.0113956,87865.0,87850.0,0.0684775]
[1767095874091,0.0113956,87865.0,87852.0,0.0113973]
[1767095875383,0.0113953,87868.0,87852.0,0.0113973]
[1767095876495,0.0113955,87866.0,87852.0,0.0113973]
[1767095876696,0.0113953,87868.0,87854.0,0.011397]
[1767095879798,0.02559039,87867.0,87854.0,0.011397]
[1767095879988,0.02559039,87866.0,87854.0,0.011397]
[1767095880188,0.02559039,87865.0,87851.0,0.01156806]
[1767095880388,0.02559039,87864.0,87851.0,0.01156806]
[1767095880684,0.02559039,87863.0,87851.0,0.01156806]
[1767095880890,0.02559039,87862.0,87851.0,0.10840806]
[1767095881091,0.06436773,87878.0,87854.0,0.0113969]
[1767095881297,0.0022759,87878.0,87852.0,0.12521787]
[1767095881486,0.0022759,87878.0,87863.0,0.0113958]
[1767095881691,0.0022759,87878.0,87864.0,0.05704]
[1767095882398,0.0022759,87878.0,87865.0,0.0113956]
[1767095884688,0.0022759,87878.0,87867.0,0.0113953]
[1767095884893,0.0022759,87878.0,87869.0,0.011395]
[1767095885194,0.58614293,87888.0,87864.0,0.05704]
[1767095885592,0.43226293,87888.0,87864.0,0.05704]
[1767095886192,0.43226293,87888.0,87875.0,0.0113943]
[1767095886501,0.0113922,87892.0,87876.0,0.05704]
[1767095887196,0.0113899,87909.0,87876.0,0.05704]
[1767095887500,0.0113899,87909.0,87881.0,0.0113935]
[1767095887501,0.0113914,87898.0,87881.0,0.0113935]
[1767095888587,0.0113908,87903.0,87876.0,0.05704]
[1767095888786,0.0113908,87903.0,87887.0,0.0113927]
[1767095888990,0.0113908,87903.0,87888.0,0.15388]
[1767095889694,0.00227512,87908.0,87888.0,0.15388]
[1767095891100,0.00227512,87908.0,87896.0,0.0113915]
[1767095891300,0.0113886,87919.0,87897.0,0.05704]
[1767095891604,0.0113885,87920.0,87901.0,0.0113909]
[1767095892006,0.00693048,87925.0,87907.0,0.01139]
[1767095892304,0.00693048,87925.0,87908.0,0.15388]
[1767095892504,0.00688048,87925.0,87909.0,0.0113898]
[1767095892702,0.0113876,87927.0,87909.0,0.0113898]
[1767095893104,0.02511742,87926.0,87909.0,0.0113898]
[1767095893400,0.02511742,87925.0,87909.0,0.0113898]
[1767095893699,0.0113869,87933.0,87912.0,0.0113895]
[1767095893900,0.02510221,87932.0,87914.0,0.00017066]
[1767095894106,0.02510221,87931.0,87914.0,0.00017066]
[1767095894297,0.02510221,87930.0,87914.0,0.00017066]
[1767095894506,0.02510221,87929.0,87914.0,0.00017066]
[1767095894703,0.02510221,87928.0,87914.0,0.00017066]
[1767095895005,0.0113869,87933.0,87914.0,0.00017066]
[1767095895208,0.02508777,87932.0,87914.0,0.00017066]
[1767095895392,0.02508777,87931.0,87914.0,0.00017066]
[1767095895591,0.02508777,87930.0,87914.0,0.00017066]
[1767095895792,0.0113872,87931.0,87914.0,0.00017066]
[1767095895997,0.0113881,87923.0,87914.0,0.00017066]
[1767095896192,0.0113885,87920.0,87914.0,6.6e-07]
[1767095896401,0.0113868,87933.0,87906.0,0.0968]
[1767095896604,0.01139,87909.0,87907.0,0.05704]
[1767095896811,0.01139,87909.0,87906.0,0.05704]
[1767095897105,0.0113895,87912.0,87906.0,0.05704]
[1767095897306,0.0968,87932.0,87906.0,0.05704]
[1767095897510,0.00017033,87928.0,87910.0,0.00017066]
[1767095898213,0.02506377,87927.0,87910.0,0.00017066]
[1767095898402,0.00017033,87928.0,87910.0,0.00017066]
[1767095898712,0.0113882,87923.0,87910.0,0.00017066]
[1767095899109,0.00017033,87928.0,87910.0,0.00017066]
[1767095899808,0.00017033,87928.0,87910.0,0.01156036]
[1767095900006,0.00017033,87928.0,87910.0,0.00017066]
[1767095900314,0.011388,87924.0,87910.0,0.00017066]
[1767095900608,0.0113884,87922.0,87910.0,0.00017066]
[1767095900810,0.0113884,87922.0,87911.0,0.15384]
[1767095902514,0.0113883,87922.0,87911.0,0.15384]
[1767095903015,0.0113883,87922.0,87910.0,0.05721066]
[1767095904516,0.0113886,87920.0,87910.0,0.05721066]
[1767095910017,0.00017033,87928.0,87910.0,0.05721066]
[1767095910219,0.00017033,87928.0,87890.0,0.04509469]
[1767095910220,0.02506536,87927.0,87890.0,0.04509469]
[1767095910520,0.00017033,87928.0,87890.0,0.04509469]
[1767095910521,0.0113893,87914.0,87898.0,0.0113913]
[1767095910819,0.0113893,87914.0,87899.0,0.05704]
[1767095912320,0.0968,87922.0,87899.0,0.05704]
[1767095912321,0.0113889,87917.0,87899.0,0.05704]
[1767095912524,0.0113892,87915.0,87899.0,0.05704]
[1767095918826,0.0113888,87918.0,87900.0,0.011391]
[1767095919026,0.025181,87917.0,87900.0,0.011391]
[1767095919226,0.025181,87916.0,87900.0,0.011391]
[1767095919422,0.025181,87915.0,87900.0,0.011391]
[1767095919624,0.025181,87914.0,87902.0,0.0113908]
[1767095919822,0.025181,87913.0,87902.0,0.0113908]
[1767095920129,0.0113888,87918.0,87902.0,0.0113908]
[1767095921733,0.0968,87920.0,87902.0,0.0113908]
[1767095923032,0.1081886,87920.0,87904.0,0.0113905]
[1767095925335,0.0968,87920.0,87904.0,0.0113905]
[1767095926045,0.0968,87920.0,87899.0,0.05704]
[1767095926330,0.0968,87920.0,87907.0,0.0113901]
[1767095927424,0.0968,87920.0,87904.0,0.0113905]
[1767095927932,0.0113886,87919.0,87904.0,0.0113905]
[1767095929635,0.0113883,87922.0,87906.0,0.0113903]
[1767095929936,0.15384,87921.0,87906.0,0.0113903]
[1767095930545,0.15384,87921.0,87910.0,0.15401058]
[1767095931939,0.02496362,87920.0,87910.0,0.15401058]
[1767095932138,0.02496362,87919.0,87910.0,0.15401058]
[1767095932335,3.62e-06,87918.0,87910.0,0.0113897]
[1767095932528,0.05704,87921.0,87910.0,0.0113897]
[1767095933642,0.05704,87921.0,87910.0,0.15401058]
[1767095933839,0.05704,87923.0,87910.0,0.15401058]
[1767095935236,0.05704,87923.0,87911.0,0.0113896]
[1767095936942,0.05704,87922.0,87911.0,0.0113896]
[1767095939246,0.05704,87922.0,87910.0,0.15401058]
[1767095939435,0.0113884,87921.0,87910.0,0.15401058]
[1767095940344,0.05704,87922.0,87910.0,0.15401058]
[1767095941837,0.0113884,87921.0,87910.0,0.15401058]
[1767095942148,0.0113892,87915.0,87906.0,0.05704]
[1767095942342,0.05704,87916.0,87898.0,0.00017066]
[1767095942548,0.05704,87915.0,87898.0,0.05721066]
[1767095942748,0.05704,87915.0,87900.0,0.15401058]
[1767095942941,0.05704,87915.0,87900.0,0.16540158]
[1767095944355,0.068429,87917.0,87900.0,0.16540158]
[1767095944652,0.02484177,87916.0,87900.0,0.16540158]
[1767095944842,0.068429,87917.0,87900.0,0.16540158]
[1767095945043,0.02484189,87916.0,87900.0,0.16540158]
[1767095945357,0.068429,87917.0,87900.0,0.16540158]
[1767095945544,0.02484198,87916.0,87900.0,0.16540158]
[1767095945850,0.068429,87917.0,87900.0,0.011391]
[1767095946050,0.02484197,87916.0,87900.0,0.16540158]
[1767095946251,0.068429,87917.0,87900.0,0.16540158]
[1767095946447,0.02484216,87916.0,87900.0,0.15401058]
[1767095946654,0.05704,87917.0,87906.0,0.15401058]
[1767095946853,0.05704,87921.0,87906.0,0.16540078]
[1767095947054,0.02484213,87920.0,87910.0,0.15401058]
[1767095947254,0.02484213,87919.0,87910.0,0.15401058]
[1767095947553,0.02484213,87918.0,87910.0,0.15401058]
[1767095947755,0.05704,87921.0,87910.0,0.15401058]
[1767095947954,0.02484238,87920.0,87910.0,0.15401058]
[1767095948155,0.02484238,87919.0,87910.0,0.15401058]
[1767095948354,0.02484238,87918.0,87910.0,0.15401058]
[1767095948565,0.05704,87921.0,87910.0,0.15401058]
[1767095948752,0.02484251,87920.0,87910.0,0.15401058]
[1767095949058,0.011388,87924.0,87911.0,0.05704]
[1767095949252,0.05721033,87928.0,87914.0,0.15401058]
[1767095949557,0.05721033,87928.0,87918.0,0.15401058]
[1767095949757,0.05721033,87928.0,87911.0,0.05704]
[1767095950359,0.0113876,87927.0,87911.0,0.05704]
[1767095951760,0.0113874,87929.0,87917.0,0.15401058]
[1767095952052,0.0113874,87929.0,87917.0,0.05704]
[1767095953057,0.01155766,87932.0,87917.0,0.05704]
[1767095953261,0.01155766,87932.0,87920.0,0.15401058]
[1767095953960,0.01155766,87932.0,87917.0,0.05704]
[1767095957662,0.00017066,87932.0,87917.0,0.05704]
[1767095957862,0.00017066,87932.0,87920.0,0.15401058]
[1767095960054,0.0113868,87933.0,87920.0,0.15401058]
[1767095961065,0.02451885,87932.0,87920.0,0.15401058]
[1767095961264,0.02451885,87931.0,87920.0,0.15401058]
[1767095961463,0.02451885,87930.0,87920.0,0.15401058]
[1767095961664,0.02451885,87929.0,87920.0,0.15401058]
[1767095961864,0.0113868,87933.0,87920.0,0.15401058]
[1767095962166,0.02451747,87932.0,87920.0,0.15401058]
[1767095962363,0.02451747,87931.0,87920.0,0.15401058]
[1767095962563,0.02451747,87930.0,87920.0,0.15401058]
[1767095962763,0.02451747,87929.0,87920.0,0.15401058]
[1767095962966,0.0113868,87933.0,87920.0,0.15401058]
[1767095963268,0.02451641,87932.0,87920.0,0.15401058]
[1767095963469,0.02451641,87931.0,87920.0,0.15401058]
[1767095963661,0.02451641,87930.0,87920.0,0.15401058]
[1767095963861,0.02451641,87929.0,87920.0,0.15401058]
[1767095964163,0.0113868,87933.0,87920.0,0.15401058]
[1767095964362,0.02451433,87932.0,87920.0,0.15401058]
[1767095964661,0.02451433,87931.0,87920.0,0.15401058]
[1767095964865,0.02451433,87930.0,87920.0,0.15401058]
[1767095965070,0.0113868,87933.0,87920.0,0.15401058]
[1767095965267,0.02451316,87932.0,87920.0,0.15401058]
[1767095965469,0.02451316,87931.0,87920.0,0.15401058]
[1767095965663,0.02451316,87930.0,87920.0,0.15401058]
[1767095965860,0.0113868,87933.0,87920.0,0.15401058]
[1767095966059,0.02451275,87932.0,87920.0,0.15401058]
[1767095966369,0.02451275,87931.0,87920.0,0.15401058]
[1767095966571,0.02451275,87930.0,87920.0,0.15401058]
[1767095966868,0.0113868,87933.0,87920.0,0.15401058]
[1767095967067,0.02451173,87932.0,87920.0,0.15401058]
[1767095967260,0.02451173,87931.0,87920.0,0.15401058]
[1767095967462,0.02451173,87930.0,87920.0,0.15401058]